[Event "2nd Irena Warakomska Memorial-B"]
[Site "Suwalki"]
[Date "2018.08.03"]
[Round "3"]
[White "Zurkowski, Andrzej"]
[Black "Rak, Tomasz"]
[Result "0-1"]
[ECO "A01"]
[WhiteElo "2076"]
[BlackElo "2007"]
[Annotator "NA"]
[PlyCount "62"]
[EventDate "2018.08.01"]
[EventType "swiss"]
[EventCountry "POL"]
[SourceTitle "playchess.com"]
[Source "ChessBase"]
[SourceQuality "1"]
[TimeControl "40/5400+30:1800+30"]

1. b3 {[%emt 0:05:13]} c5 {[%emt 0:00:35]} 2. Bb2 {[%emt 0:00:18]} Nc6 {[%emt 0:00:25]} 3. e3 {[%emt 0:00:18]} d5 {[%emt 0:01:54]} 4. Bb5 {[%emt 0:00:24]} Bd7 {[%emt 0:04:05]} 5. f4 {[%emt 0:01:55]} a6 {[%emt 0:03:04]} 6. Bxc6 {[%emt 0:00:22]} Bxc6 {[%emt 0:00:02]} 7. Nf3 {[%emt 0:00:07]} Nf6 {[%emt 0:05:04]} 8. O-O {[%emt 0:00:27]} b5 {[%emt 0:03:52]} 9. Ne5 {[%emt 0:00:39]} Bb7 {[%emt 0:08:28]} 10. d3 {[%emt 0:03:46]} Qb6 {[%emt 0:09:34]} 11. Nd2 {[%emt 0:02:48]} e6 {[%emt 0:08:47]} 12. Ndf3 {[%emt 0:00:25]} Be7 {[%emt 0:03:25]} 13. Qe1 {[%emt 0:02:39]} O-O {[%emt 0:03:29]} 14. Qg3 {[%emt 0:00:37]} Rad8 {[%emt 0:05:17]} 15. Kh1 {[%emt 0:06:25]} d4 16. e4 {[%emt 0:01:34]} Nd7 {[%emt 0:01:36]} 17. Ng4 {[%emt 0:05:00]} f5 {[%emt 0:02:46]} 18. Nf2 {[%emt 0:02:12]} Nf6 {[%emt 0:03:18]} 19. Qh3 fxe4 20. Ng5 {[%emt 0:12:04]} e3 {[%emt 0:07:51]} 21. Nfe4 {[%emt 0:04:23]} h6 {[%emt 0:03:54]} 22. Nxe6 Nxe4 23. dxe4 {[%emt 0:03:41]} Bxe4 {[%emt 0:08:42]} 24. Nxf8 {[%emt 0:05:25]} Rxf8 25. c3 Bf6 {[%emt 0:02:24]} 26. cxd4 {[%emt 0:00:57]} cxd4 {[%emt 0:00:22]} 27. Rfd1 {[%emt 0:01:22]} e2 28. Re1 {[%emt 0:02:14]} d3 {[%emt 0:03:15]} 29. Bxf6 {[%emt 0:00:03]} Qxf6 {[%emt 0:00:14]} 30. Qe3 {[%emt 0:01:38]} Qxf4 {[%emt 0:01:31]} 31. Rxe2 Qf1+ {[%emt 0:02:08]} 0-1

[Event "2nd Irena Warakomska Memorial-B"]
[Site "Suwalki"]
[Date "2018.08.03"]
[Round "3"]
[White "Kowalec, Maciej"]
[Black "Shamatava, Nikolozi"]
[Result "1/2-1/2"]
[ECO "A34"]
[WhiteElo "2065"]
[BlackElo "1676"]
[Annotator "NA"]
[PlyCount "86"]
[EventDate "2018.08.01"]
[EventType "swiss"]
[EventCountry "POL"]
[SourceTitle "playchess.com"]
[Source "ChessBase"]
[SourceQuality "1"]
[TimeControl "40/5400+30:1800+30"]

1. c4 {[%emt 0:03:44]} Nf6 {[%emt 0:00:00]} 2. Nc3 {[%emt 0:00:39]} c5 {[%emt 0:00:36]} 3. g3 {[%emt 0:00:29]} g6 {[%emt 0:00:34]} 4. Bg2 {[%emt 0:00:15]} Bg7 {[%emt 0:00:02]} 5. d3 {[%emt 0:00:27]} O-O {[%emt 0:00:36]} 6. e4 {[%emt 0:00:42]} d6 {[%emt 0:01:04]} 7. Nge2 {[%emt 0:04:09]} Nc6 {[%emt 0:05:04]} 8. O-O {[%emt 0:00:48]} a6 {[%emt 0:05:48]} 9. h3 {[%emt 0:03:39]} Nd4 {[%emt 0:03:36]} 10. Be3 {[%emt 0:03:40]} Nxe2+ {[%emt 0:04:52]} 11. Qxe2 {[%emt 0:01:06]} Rb8 {[%emt 0:02:50]} 12. a4 {[%emt 0:05:14]} Ne8 {[%emt 0:04:37]} 13. Qd2 {[%emt 0:03:34]} Nc7 {[%emt 0:04:35]} 14. Bh6 {[%emt 0:04:31]} b5 {[%emt 0:02:59]} 15. Bxg7 {[%emt 0:01:42]} Kxg7 {[%emt 0:01:06]} 16. axb5 {[%emt 0:01:52]} axb5 {[%emt 0:00:07]} 17. b3 {[%emt 0:03:18]} b4 {[%emt 0:04:40]} 18. Ne2 {[%emt 0:01:31]} e5 {[%emt 0:04:41]} 19. f4 {[%emt 0:00:38]} f6 {[%emt 0:01:18]} 20. Ra7 {[%emt 0:04:57]} Ba6 {[%emt 0:04:26]} 21. Qe3 {[%emt 0:13:02]} Rb6 {[%emt 0:01:39]} 22. fxe5 {[%emt 0:01:12]} fxe5 {[%emt 0:00:07]} 23. Rxf8 {[%emt 0:01:04]} Kxf8 {[%emt 0:00:06]} 24. d4 {[%emt 0:09:17]} exd4 {[%emt 0:04:55]} 25. Nxd4 {[%emt 0:05:33]} Kg8 {[%emt 0:11:15]} 26. e5 {[%emt 0:09:15]} Qb8 {[%emt 0:23:33]} 27. Nc6 {[%emt 0:04:16]} Rxc6 {[%emt 0:01:16]} 28. Bxc6 {[%emt 0:00:04]} Qxa7 {[%emt 0:01:23]} 29. exd6 {[%emt 0:00:13]} Bb7 {[%emt 0:00:43]} 30. dxc7 {[%emt 0:07:58]} Qa1+ {[%emt 0:00:16]} 31. Kf2 {[%emt 0:00:58]} Qb2+ {[%emt 0:02:26]} 32. Qe2 {[%emt 0:01:15]} Qd4+ {[%emt 0:00:27]} 33. Qe3 {[%emt 0:01:30]} Qb2+ 34. Ke1 {[%emt 0:01:21]} Qa1+ {[%emt 0:00:44]} 35. Ke2 {[%emt 0:01:20]} Qb2+ {[%emt 0:00:18]} 36. Qd2 {[%emt 0:00:29]} Qe5+ {[%emt 0:00:23]} 37. Kd1 {[%emt 0:00:14]} Qa1+ {[%emt 0:01:05]} 38. Qc1 {[%emt 0:00:39]} Qd4+ {[%emt 0:00:17]} 39. Qd2 {[%emt 0:01:10]} Qa1+ 40. Ke2 {[%emt 0:00:00]} Qe5+ {[%emt 0:00:00]} 41. Qe3 {[%emt 0:11:51]} Qb2+ {[%emt 0:00:51]} 42. Kd1 {[%emt 0:00:59]} Qa1+ {[%emt 0:00:37]} 43. Ke2 {[%emt 0:05:27]} Qb2+ {[%emt 0:00:23]} 1/2-1/2

[Event "2nd Irena Warakomska Memorial-B"]
[Site "Suwalki"]
[Date "2018.08.03"]
[Round "3"]
[White "Rudzinska, Michalina"]
[Black "Sukhimski, Vladimir"]
[Result "1-0"]
[ECO "B57"]
[WhiteElo "2003"]
[BlackElo "2083"]
[Annotator "NA"]
[PlyCount "85"]
[EventDate "2018.08.01"]
[EventType "swiss"]
[EventCountry "POL"]
[SourceTitle "playchess.com"]
[Source "ChessBase"]
[SourceQuality "1"]
[TimeControl "40/5400+30:1800+30"]

1. e4 {[%emt 0:00:00]} c5 {[%emt 0:00:00]} 2. Nf3 {[%emt 0:00:00]} Nc6 {[%emt 0:00:00]} 3. d4 {[%emt 0:00:00]} cxd4 {[%emt 0:00:08]} 4. Nxd4 {[%emt 0:00:01]} Nf6 {[%emt 0:00:13]} 5. Nc3 {[%emt 0:00:09]} d6 {[%emt 0:00:29]} 6. Bc4 {[%emt 0:00:14]} Qb6 {[%emt 0:00:52]} 7. Nxc6 {[%emt 0:07:45]} bxc6 {[%emt 0:00:39]} 8. O-O {[%emt 0:02:50]} e5 {[%emt 0:06:48]} 9. Bb3 {[%emt 0:14:18]} Be7 {[%emt 0:07:51]} 10. Bg5 {[%emt 0:02:06]} Ba6 {[%emt 0:05:01]} 11. Re1 {[%emt 0:02:35]} O-O {[%emt 0:08:02]} 12. Qf3 {[%emt 0:00:51]} h6 {[%emt 0:02:51]} 13. Be3 {[%emt 0:02:41]} Qc7 {[%emt 0:01:14]} 14. Rad1 {[%emt 0:00:15]} Rab8 {[%emt 0:04:13]} 15. Ne2 {[%emt 0:03:00]} d5 {[%emt 0:05:00]} 16. Ng3 {[%emt 0:11:51]} Bc8 {[%emt 0:09:10]} 17. h3 {[%emt 0:00:23]} Be6 {[%emt 0:00:38]} 18. exd5 {[%emt 0:04:58]} cxd5 {[%emt 0:11:54]} 19. Nf5 {[%emt 0:02:15]} e4 {[%emt 0:03:35]} 20. Nxe7+ {[%emt 0:02:22]} Qxe7 {[%emt 0:00:07]} 21. Qg3 {[%emt 0:03:36]} Kh7 {[%emt 0:01:21]} 22. Bd4 {[%emt 0:00:26]} Rfd8 {[%emt 0:04:27]} 23. f3 {[%emt 0:02:04]} exf3 {[%emt 0:00:32]} 24. Qxf3 {[%emt 0:00:19]} Ne4 {[%emt 0:01:58]} 25. c4 {[%emt 0:03:40]} f5 {[%emt 0:09:49]} 26. cxd5 {[%emt 0:00:50]} Rxb3 {[%emt 0:01:10]} 27. axb3 {[%emt 0:01:17]} Rxd5 {[%emt 0:00:17]} 28. Bf2 {[%emt 0:05:09]} Qf7 {[%emt 0:06:19]} 29. Rxd5 {[%emt 0:02:01]} Bxd5 {[%emt 0:00:11]} 30. Ra1 {[%emt 0:03:44]} a6 {[%emt 0:02:14]} 31. Ra5 {[%emt 0:03:03]} Nc5 {[%emt 0:03:48]} 32. Qf4 {[%emt 0:01:30]} Nd3 {[%emt 0:02:36]} 33. Qd4 {[%emt 0:01:24]} Be4 {[%emt 0:00:52]} 34. Rxa6 {[%emt 0:00:26]} Qh5 {[%emt 0:01:01]} 35. Re6 {[%emt 0:11:15]} Qd1+ {[%emt 0:01:24]} 36. Kh2 {[%emt 0:00:05]} Nxf2 {[%emt 0:00:32]} 37. Qxf2 {[%emt 0:00:41]} Qxb3 {[%emt 0:00:05]} 38. Re7 {[%emt 0:01:25]} Qb8+ {[%emt 0:00:22]} 39. Qg3 {[%emt 0:00:14]} Qf8 {[%emt 0:00:01]} 40. Qe5 {[%emt 0:00:00]} h5 {[%emt 0:00:00]} 41. b4 {[%emt 0:02:06]} h4 {[%emt 0:06:05]} 42. b5 {[%emt 0:00:32]} Kh6 {[%emt 0:02:44]} 43. b6 {[%emt 0:02:54]} 1-0

[Event "2nd Irena Warakomska Memorial-B"]
[Site "Suwalki"]
[Date "2018.08.03"]
[Round "3"]
[White "Milanowski, Jan"]
[Black "Samborski, Henryk"]
[Result "1/2-1/2"]
[ECO "A03"]
[WhiteElo "1774"]
[BlackElo "2098"]
[Annotator "NA"]
[PlyCount "41"]
[EventDate "2018.08.01"]
[EventType "swiss"]
[EventCountry "POL"]
[SourceTitle "playchess.com"]
[Source "ChessBase"]
[SourceQuality "1"]
[TimeControl "40/5400+30:1800+30"]

1. f4 {[%emt 0:00:05]} d5 {[%emt 0:00:00]} 2. Nf3 {[%emt 0:00:10]} c5 {[%emt 0:00:32]} 3. e3 {[%emt 0:00:28]} Nc6 {[%emt 0:01:14]} 4. b3 {[%emt 0:02:26]} Nf6 {[%emt 0:05:05]} 5. Bb2 {[%emt 0:01:23]} Bf5 {[%emt 0:06:36]} 6. Bb5 {[%emt 0:00:34]} Qb6 {[%emt 0:01:46]} 7. Bxc6+ {[%emt 0:01:07]} Qxc6 {[%emt 0:00:12]} 8. Ne5 {[%emt 0:00:19]} Qc8 {[%emt 0:14:52]} 9. d3 {[%emt 0:00:09]} Ng4 {[%emt 0:01:27]} 10. Qf3 {[%emt 0:01:28]} Nxe5 {[%emt 0:02:14]} 11. Bxe5 {[%emt 0:00:13]} Qc6 {[%emt 0:06:08]} 12. Nd2 {[%emt 0:00:18]} f6 {[%emt 0:05:28]} 13. Bb2 {[%emt 0:00:08]} O-O-O {[%emt 0:02:26]} 14. h3 {[%emt 0:04:53]} Kb8 {[%emt 0:05:43]} 15. g4 {[%emt 0:02:14]} Bc8 {[%emt 0:01:15]} 16. O-O-O {[%emt 0:00:18]} e6 {[%emt 0:04:24]} 17. Rhg1 {[%emt 0:00:31]} h6 {[%emt 0:01:03]} 18. h4 {[%emt 0:01:32]} b6 19. Qf2 Qc7 20. Qf3 Qc6 21. Qf2 1/2-1/2

[Event "2nd Irena Warakomska Memorial-B"]
[Site "Suwalki"]
[Date "2018.08.03"]
[Round "4"]
[White "Rak, Tomasz"]
[Black "Rudzinska, Michalina"]
[Result "1/2-1/2"]
[ECO "A04"]
[WhiteElo "2007"]
[BlackElo "2003"]
[Annotator "NA"]
[PlyCount "124"]
[EventDate "2018.08.01"]
[EventType "swiss"]
[EventCountry "POL"]
[SourceTitle "playchess.com"]
[Source "ChessBase"]
[SourceQuality "1"]
[TimeControl "40/5400+30:1800+30"]

1. Nf3 {[%emt 0:00:00]} c5 {[%emt 0:00:00]} 2. c4 {[%emt 0:00:00]} e6 {[%emt 0:00:00]} 3. d4 {[%emt 0:00:22]} cxd4 {[%emt 0:00:00]} 4. Nxd4 {[%emt 0:00:02]} a6 {[%emt 0:00:08]} 5. Nc3 {[%emt 0:02:41]} Qc7 {[%emt 0:00:21]} 6. e4 {[%emt 0:01:45]} Nf6 {[%emt 0:00:38]} 7. Nc2 {[%emt 0:02:20]} b6 {[%emt 0:00:58]} 8. Be3 {[%emt 0:05:59]} d6 {[%emt 0:01:25]} 9. f3 {[%emt 0:02:11]} Bb7 {[%emt 0:00:23]} 10. Qd2 {[%emt 0:04:34]} Nbd7 {[%emt 0:01:23]} 11. Bf2 {[%emt 0:02:34]} Rc8 {[%emt 0:04:18]} 12. Rc1 {[%emt 0:01:22]} Be7 {[%emt 0:02:20]} 13. Be2 {[%emt 0:00:37]} O-O {[%emt 0:01:29]} 14. O-O {[%emt 0:00:18]} Qb8 {[%emt 0:10:11]} 15. Rfd1 {[%emt 0:02:00]} Rfd8 {[%emt 0:09:05]} 16. Ne3 {[%emt 0:02:40]} Ne5 {[%emt 0:02:14]} 17. Qe1 {[%emt 0:04:34]} Rd7 {[%emt 0:02:55]} 18. Rc2 {[%emt 0:03:29]} Bd8 {[%emt 0:04:05]} 19. Kh1 {[%emt 0:03:52]} Bc7 {[%emt 0:00:54]} 20. Bg1 {[%emt 0:00:46]} Rcd8 {[%emt 0:02:46]} 21. Rcd2 {[%emt 0:01:30]} Kh8 {[%emt 0:07:39]} 22. Bf1 {[%emt 0:01:14]} g5 {[%emt 0:02:30]} 23. h3 {[%emt 0:08:55]} Rg8 {[%emt 0:14:29]} 24. Ng4 {[%emt 0:05:07]} Nfxg4 {[%emt 0:02:30]} 25. fxg4 {[%emt 0:00:48]} Rg6 {[%emt 0:08:30]} 26. Bd4 {[%emt 0:01:24]} Rd8 {[%emt 0:00:42]} 27. Na4 {[%emt 0:05:37]} Bc6 {[%emt 0:02:01]} 28. Nc3 {[%emt 0:02:14]} Kg8 {[%emt 0:02:12]} 29. Qe2 {[%emt 0:05:51]} Re8 {[%emt 0:07:50]} 30. b4 {[%emt 0:00:42]} Ba8 {[%emt 0:00:59]} 31. Na4 {[%emt 0:11:39]} d5 {[%emt 0:01:03]} 32. c5 {[%emt 0:05:01]} b5 {[%emt 0:00:40]} 33. Nb6 {[%emt 0:01:01]} Bc6 {[%emt 0:00:27]} 34. Bxe5 {[%emt 0:03:10]} Bxe5 {[%emt 0:00:06]} 35. exd5 {[%emt 0:01:18]} exd5 {[%emt 0:00:11]} 36. Nxd5 {[%emt 0:00:41]} Bxd5 {[%emt 0:05:06]} 37. Rxd5 {[%emt 0:00:09]} Bc3 {[%emt 0:00:45]} 38. Qxe8+ {[%emt 0:01:18]} Qxe8 {[%emt 0:00:05]} 39. Rd8 {[%emt 0:00:08]} Kf8 {[%emt 0:01:22]} 40. Rxe8+ {[%emt 0:00:00]} Kxe8 {[%emt 0:00:00]} 41. a3 {[%emt 0:04:21]} Re6 {[%emt 0:02:21]} 42. Rd3 {[%emt 0:03:26]} Bb2 {[%emt 0:01:09]} 43. Rb3 {[%emt 0:06:55]} Bd4 {[%emt 0:00:50]} 44. Rd3 {[%emt 0:03:01]} Bb2 {[%emt 0:00:14]} 45. Rb3 {[%emt 0:00:23]} Bd4 {[%emt 0:00:06]} 46. g3 {[%emt 0:01:29]} Re3 {[%emt 0:06:33]} 47. Rxe3+ {[%emt 0:00:48]} Bxe3 {[%emt 0:00:05]} 48. a4 {[%emt 0:00:34]} bxa4 {[%emt 0:00:09]} 49. Bxa6 {[%emt 0:00:08]} a3 {[%emt 0:00:27]} 50. Bc4 {[%emt 0:00:29]} f6 {[%emt 0:01:27]} 51. Kg2 {[%emt 0:00:13]} Kd7 {[%emt 0:03:54]} 52. Kf3 {[%emt 0:00:11]} Bd2 {[%emt 0:00:13]} 53. b5 {[%emt 0:01:23]} Bb4 {[%emt 0:00:48]} 54. c6+ {[%emt 0:00:26]} Kd6 {[%emt 0:00:11]} 55. Ke4 {[%emt 0:00:26]} Bc3 {[%emt 0:08:21]} 56. h4 {[%emt 0:02:14]} gxh4 {[%emt 0:00:40]} 57. gxh4 {[%emt 0:00:12]} Be1 {[%emt 0:02:05]} 58. h5 {[%emt 0:01:45]} h6 {[%emt 0:01:31]} 59. Kd3 {[%emt 0:03:27]} Bg3 {[%emt 0:01:41]} 60. Kc2 {[%emt 0:05:05]} Kc5 {[%emt 0:00:47]} 61. Kb3 {[%emt 0:02:01]} Bd6 {[%emt 0:00:17]} 62. Bd3 {[%emt 0:03:08]} Kb6 {[%emt 0:00:21]} 1/2-1/2

[Event "2nd Irena Warakomska Memorial-B"]
[Site "Suwalki"]
[Date "2018.08.03"]
[Round "4"]
[White "Kaminski, Maciej"]
[Black "Kowalec, Maciej"]
[Result "0-1"]
[ECO "B09"]
[WhiteElo "1955"]
[BlackElo "2065"]
[Annotator "NA"]
[PlyCount "102"]
[EventDate "2018.08.01"]
[EventType "swiss"]
[EventCountry "POL"]
[SourceTitle "playchess.com"]
[Source "ChessBase"]
[SourceQuality "1"]
[TimeControl "40/5400+30:1800+30"]

1. e4 {[%emt 0:00:00]} d6 {[%emt 0:02:23]} 2. d4 {[%emt 0:00:26]} Nf6 {[%emt 0:00:08]} 3. Nc3 {[%emt 0:00:06]} g6 {[%emt 0:00:06]} 4. f4 {[%emt 0:00:22]} Bg7 {[%emt 0:00:39]} 5. Nf3 {[%emt 0:01:04]} c5 {[%emt 0:01:12]} 6. Bb5+ {[%emt 0:01:45]} Nfd7 {[%emt 0:01:48]} 7. Be3 {[%emt 0:08:17]} Qa5 {[%emt 0:04:02]} 8. Qd2 {[%emt 0:03:08]} a6 {[%emt 0:01:32]} 9. Be2 {[%emt 0:00:41]} b5 {[%emt 0:03:40]} 10. h4 {[%emt 0:03:07]} Bb7 {[%emt 0:02:45]} 11. d5 {[%emt 0:05:09]} Nf6 {[%emt 0:03:52]} 12. Nd1 {[%emt 0:07:37]} Qa4 {[%emt 0:10:02]} 13. Nc3 {[%emt 0:09:10]} Nxe4 {[%emt 0:05:13]} 14. Nxa4 {[%emt 0:04:25]} Nxd2 {[%emt 0:00:13]} 15. Nxd2 {[%emt 0:00:47]} bxa4 {[%emt 0:00:08]} 16. Nc4 {[%emt 0:01:14]} Nd7 {[%emt 0:05:06]} 17. O-O-O {[%emt 0:00:46]} Rb8 {[%emt 0:01:34]} 18. Na5 {[%emt 0:00:41]} Ba8 {[%emt 0:04:03]} 19. b3 {[%emt 0:10:55]} axb3 {[%emt 0:01:36]} 20. axb3 {[%emt 0:00:12]} Nf6 {[%emt 0:09:46]} 21. Bf3 {[%emt 0:03:59]} h5 {[%emt 0:05:21]} 22. c4 {[%emt 0:05:35]} Ng4 {[%emt 0:03:10]} 23. Bg1 {[%emt 0:07:31]} Bc3 {[%emt 0:06:10]} 24. Nc6 {[%emt 0:00:48]} Rxb3 {[%emt 0:05:40]} 25. Kc2 {[%emt 0:03:16]} Ra3 {[%emt 0:01:08]} 26. Rd3 {[%emt 0:02:05]} Bxc6 {[%emt 0:01:36]} 27. dxc6 {[%emt 0:04:43]} Bb4 {[%emt 0:00:25]} 28. Bxc5 {[%emt 0:07:03]} Rxd3 {[%emt 0:06:43]} 29. Bxb4 {[%emt 0:01:58]} Rd4 {[%emt 0:01:25]} 30. Bc3 {[%emt 0:03:57]} Rxc4 {[%emt 0:01:44]} 31. Kd3 {[%emt 0:00:27]} Rxc3+ {[%emt 0:01:38]} 32. Kxc3 {[%emt 0:00:35]} O-O {[%emt 0:02:16]} 33. Rb1 {[%emt 0:01:01]} Rc8 {[%emt 0:00:53]} 34. Rb7 {[%emt 0:00:54]} Nf6 {[%emt 0:01:48]} 35. Kb4 {[%emt 0:00:27]} Kf8 {[%emt 0:01:48]} 36. Ka5 {[%emt 0:01:23]} d5 {[%emt 0:01:14]} 37. Kb6 {[%emt 0:00:33]} Ke8 {[%emt 0:00:27]} 38. Be2 {[%emt 0:00:33]} d4 {[%emt 0:01:33]} 39. Bxa6 {[%emt 0:00:53]} Nd5+ {[%emt 0:00:49]} 40. Kc5 {[%emt 0:00:00]} Nxf4 {[%emt 0:00:00]} 41. Kxd4 {[%emt 0:05:58]} Ne6+ 42. Ke5 {[%emt 0:04:16]} f6+ {[%emt 0:04:41]} 43. Kd5 {[%emt 0:03:34]} Nc7+ {[%emt 0:00:54]} 44. Rxc7 {[%emt 0:00:50]} Rxc7 {[%emt 0:00:01]} 45. Bb7 e5 {[%emt 0:03:05]} 46. Kd6 {[%emt 0:03:47]} Kd8 {[%emt 0:00:22]} 47. Kd5 {[%emt 0:00:23]} Ke7 {[%emt 0:00:10]} 48. Ba8 {[%emt 0:00:13]} Ra7 {[%emt 0:00:58]} 49. Bb7 {[%emt 0:00:37]} Ra5+ {[%emt 0:00:04]} 50. Kc4 {[%emt 0:00:08]} Kd6 {[%emt 0:00:11]} 51. Kb4 {[%emt 0:00:21]} Rc5 {[%emt 0:00:06]} 0-1

[Event "2nd Irena Warakomska Memorial-B"]
[Site "Suwalki"]
[Date "2018.08.03"]
[Round "4"]
[White "Milanowski, Jan"]
[Black "Mazalon, Mariusz"]
[Result "1/2-1/2"]
[ECO "A40"]
[WhiteElo "1774"]
[BlackElo "2055"]
[Annotator "NA"]
[PlyCount "54"]
[EventDate "2018.08.01"]
[EventType "swiss"]
[EventCountry "POL"]
[SourceTitle "playchess.com"]
[Source "ChessBase"]
[SourceQuality "1"]
[TimeControl "40/5400+30:1800+30"]

1. d4 g6 {[%emt 0:01:14]} 2. Bf4 {[%emt 0:02:17]} Bg7 {[%emt 0:00:12]} 3. c3 {[%emt 0:00:21]} Nf6 {[%emt 0:00:09]} 4. Nf3 {[%emt 0:00:17]} d6 {[%emt 0:00:13]} 5. h3 {[%emt 0:01:14]} b6 {[%emt 0:03:02]} 6. e3 {[%emt 0:00:25]} Bb7 {[%emt 0:00:28]} 7. Nbd2 {[%emt 0:00:16]} Nbd7 {[%emt 0:00:18]} 8. Be2 {[%emt 0:01:03]} c5 {[%emt 0:00:30]} 9. O-O {[%emt 0:00:17]} O-O {[%emt 0:00:05]} 10. a4 {[%emt 0:00:24]} a6 {[%emt 0:00:36]} 11. Bh2 {[%emt 0:00:15]} Ra7 {[%emt 0:03:00]} 12. Re1 {[%emt 0:00:50]} Qa8 {[%emt 0:00:05]} 13. Bf1 {[%emt 0:00:20]} Bc6 {[%emt 0:07:12]} 14. Qb3 {[%emt 0:02:40]} b5 {[%emt 0:09:33]} 15. a5 c4 {[%emt 0:03:06]} 16. Qd1 {[%emt 0:09:53]} Ne4 {[%emt 0:09:30]} 17. Nxe4 {[%emt 0:03:17]} Bxe4 {[%emt 0:00:03]} 18. Nd2 {[%emt 0:00:09]} Bb7 {[%emt 0:03:16]} 19. f3 {[%emt 0:07:12]} e5 {[%emt 0:01:11]} 20. Nb1 {[%emt 0:01:25]} Bc8 {[%emt 0:08:10]} 21. Na3 {[%emt 0:02:54]} Re8 {[%emt 0:04:48]} 22. Nc2 {[%emt 0:00:55]} Rc7 {[%emt 0:05:58]} 23. Nb4 {[%emt 0:00:33]} Bb7 {[%emt 0:00:54]} 24. Qd2 {[%emt 0:09:33]} Nf6 {[%emt 0:05:50]} 25. Rad1 {[%emt 0:02:43]} Rd7 {[%emt 0:05:28]} 26. Qf2 {[%emt 0:02:17]} h6 27. Kh1 Qd8 {[%emt 0:01:36]} 1/2-1/2

[Event "2nd Irena Warakomska Memorial-B"]
[Site "Suwalki"]
[Date "2018.08.03"]
[Round "4"]
[White "Shamatava, Nikolozi"]
[Black "Nikitin, Aleksander I"]
[Result "1/2-1/2"]
[ECO "A40"]
[WhiteElo "1676"]
[BlackElo "2036"]
[Annotator "NA"]
[PlyCount "87"]
[EventDate "2018.08.01"]
[EventType "swiss"]
[EventCountry "POL"]
[SourceTitle "playchess.com"]
[Source "ChessBase"]
[SourceQuality "1"]
[TimeControl "40/5400+30:1800+30"]

1. d4 {[%emt 0:00:00]} b5 {[%emt 0:00:00]} 2. Bf4 {[%emt 0:00:03]} Bb7 {[%emt 0:00:12]} 3. e3 {[%emt 0:00:33]} e6 {[%emt 0:00:06]} 4. Nf3 {[%emt 0:00:21]} a6 5. Nbd2 Nf6 {[%emt 0:02:22]} 6. Bd3 {[%emt 0:02:00]} c5 7. c3 {[%emt 0:07:53]} Be7 {[%emt 0:05:57]} 8. O-O {[%emt 0:10:33]} Nh5 {[%emt 0:06:15]} 9. Bg3 {[%emt 0:07:17]} Nxg3 {[%emt 0:12:16]} 10. fxg3 {[%emt 0:05:12]} Nc6 {[%emt 0:06:07]} 11. Kh1 {[%emt 0:09:39]} O-O {[%emt 0:07:46]} 12. Qe2 {[%emt 0:12:39]} d6 {[%emt 0:16:06]} 13. Rf2 {[%emt 0:02:27]} Qc7 {[%emt 0:17:39]} 14. Raf1 {[%emt 0:04:06]} Nd8 {[%emt 0:03:33]} 15. e4 {[%emt 0:01:08]} cxd4 {[%emt 0:02:57]} 16. cxd4 {[%emt 0:05:34]} Qb6 {[%emt 0:04:45]} 17. Nb3 {[%emt 0:07:53]} Nc6 {[%emt 0:08:40]} 18. h3 {[%emt 0:02:03]} e5 {[%emt 0:03:23]} 19. d5 Nb4 {[%emt 0:00:26]} 20. Bb1 {[%emt 0:01:25]} a5 {[%emt 0:00:45]} 21. Qd2 {[%emt 0:00:52]} f5 {[%emt 0:00:38]} 22. a3 {[%emt 0:01:23]} fxe4 {[%emt 0:00:26]} 23. Bxe4 {[%emt 0:01:02]} Na6 {[%emt 0:00:35]} 24. Nh4 {[%emt 0:05:00]} Rxf2 25. Rxf2 {[%emt 0:02:49]} a4 {[%emt 0:00:50]} 26. Nf5 {[%emt 0:01:46]} Bf8 {[%emt 0:00:36]} 27. Nc1 {[%emt 0:01:13]} Rc8 {[%emt 0:00:30]} 28. Nd3 {[%emt 0:00:10]} Nc5 29. Nxc5 {[%emt 0:03:13]} Qxc5 {[%emt 0:01:01]} 30. Rf1 {[%emt 0:02:08]} Qc4 {[%emt 0:00:33]} 31. Re1 {[%emt 0:00:26]} g6 32. Nh4 {[%emt 0:00:25]} Qc7 {[%emt 0:01:01]} 33. Nf3 Qe7 {[%emt 0:00:23]} 34. g4 {[%emt 0:00:54]} Rc5 {[%emt 0:00:34]} 35. Rf1 {[%emt 0:01:51]} Qf6 36. Nh2 {[%emt 0:00:26]} Qe7 {[%emt 0:00:50]} 37. g5 {[%emt 0:00:52]} Bc8 38. h4 {[%emt 0:02:37]} Rc4 {[%emt 0:00:36]} 39. Qe2 {[%emt 0:00:17]} Bd7 {[%emt 0:00:58]} 40. Ng4 {[%emt 0:00:00]} Bxg4 {[%emt 0:00:00]} 41. Qxg4 {[%emt 0:06:39]} Qe8 {[%emt 0:12:15]} 42. Qf3 Be7 43. g4 {[%emt 0:02:53]} b4 {[%emt 0:07:50]} 44. Rf2 {[%emt 0:03:43]} 1/2-1/2